bitfinex-derivatives/quotes_ETHF0:USTF0_20241007
["timestamp","ask_amount","ask_price","bid_price","bid_amount"]
[1728263647667,0.28065,2494.3,2493.9,0.8686]
[1728263647867,1.8421,2494.5,2493.9,0.8686]
[1728263648167,1.8421,2494.5,2493.8,3.2078]
[1728263648168,0.28067,2494.2,2493.8,3.2078]
[1728263649768,3.85,2494.3,2493.8,3.2078]
[1728263650071,0.28067,2494.1,2493.8,3.2078]
[1728263650664,0.28069,2493.9,2493.8,3.2078]
[1728263650874,0.28069,2493.9,2493.3,0.8581]
[1728263651071,0.28072,2493.7,2493.3,0.8581]
[1728263651468,0.28071,2493.8,2493.3,0.8581]
[1728263651767,0.28072,2493.7,2493.3,0.8581]
[1728263652963,0.28072,2493.7,2493.2,3.2078]
[1728263653869,0.28071,2493.8,2493.2,3.2078]
[1728263654070,4.6994,2494.0,2493.2,3.2078]
[1728263654265,0.28072,2493.7,2493.2,3.2078]
[1728263655467,4.6994,2494.0,2493.2,3.2078]
[1728263655668,3.9232065,2494.3,2493.1,1.8422]
[1728263655669,3.85,2494.3,2493.5,3.48853]
[1728263655865,3.85,2494.3,2493.6,0.8903]
[1728263655866,4.13065,2494.3,2493.6,0.8903]
[1728263656065,3.85,2494.3,2493.7,0.937]
[1728263656269,3.85,2494.3,2493.5,3.2078]
[1728263656270,3.85,2493.8,2493.5,3.2078]
[1728263656673,0.28073,2493.6,2493.5,3.2078]
[1728263656863,4.0104,2493.7,2493.2,3.2078]
[1728263657068,3.85,2493.5,2492.9,3.2078]
[1728263657272,2.47578,2493.8,2492.9,3.2078]
[1728263657273,3.85,2493.1,2492.9,3.2078]
[1728263657481,3.2078,2493.6,2492.9,3.2078]
[1728263657482,0.28076,2493.4,2492.9,3.2078]
[1728263658171,3.85,2493.5,2492.9,3.2078]
[1728263658379,0.28076,2493.3,2492.9,3.2078]
[1728263659374,3.85,2493.5,2492.9,3.2078]
[1728263659568,4.13075,2493.5,2492.9,3.2078]
[1728263660077,3.85,2493.5,2492.9,3.2078]
[1728263660571,0.28075,2493.4,2492.9,3.2078]
[1728263660773,4.13075,2493.5,2492.9,3.2078]
[1728263661176,3.85,2493.2,2492.9,3.2078]
[1728263661482,4.13078,2493.2,2492.9,3.2078]
[1728263661780,3.85,2493.2,2492.9,3.2078]
[1728263662075,0.28079,2493.1,2492.9,3.2078]
[1728263662574,3.85,2493.2,2492.9,3.2078]
[1728263662770,4.13078,2493.2,2492.9,3.2078]
[1728263663876,0.28078,2493.1,2492.9,3.2078]
[1728263664777,4.13078,2493.2,2492.9,3.2078]
[1728263665379,4.57347509,2493.5,2492.9,3.2078]
[1728263665776,0.28075,2493.4,2492.9,3.2078]
[1728263665976,4.57347509,2493.5,2492.9,3.2078]
[1728263666173,0.28077,2493.2,2492.9,3.2078]
[1728263667081,0.28075,2493.4,2492.9,3.2078]
[1728263668085,0.28076,2493.3,2492.9,3.2078]
[1728263668278,0.28075,2493.4,2492.9,3.2078]
[1728263668876,0.28076,2493.3,2492.9,3.2078]
[1728263670279,0.28075,2493.4,2492.9,3.2078]
[1728263670478,3.13,2493.2,2492.9,3.2078]
[1728263670672,0.28087,2492.3,2492.2,3.2078]
[1728263670872,0.98306,2492.3,2491.7,0.8876]
[1728263671074,3.13,2491.8,2491.6,4.0578]
[1728263671277,3.13,2491.8,2490.2,12.1574116]
[1728263671278,3.13,2491.7,2491.2,4.0954]
[1728263671586,0.281,2491.2,2490.9,3.2078]
[1728263671882,3.13,2491.0,2490.9,3.2078]
[1728263672191,3.13,2491.2,2490.9,3.2078]
[1728263672375,3.86,2491.6,2490.9,3.2078]
[1728263672880,3.86,2491.6,2491.0,0.9246]
[1728263673288,0.28093,2491.8,2491.2,3.2078]
[1728263673586,7.0678,2491.9,2491.3,0.9039]
[1728263673587,7.34872,2491.9,2491.3,0.9039]
[1728263673788,7.0678,2491.9,2491.3,1.7502]
[1728263674087,0.28094,2491.8,2491.3,1.7502]
[1728263674695,7.0678,2491.9,2491.3,1.7502]
[1728263674993,4.14096,2491.6,2491.3,1.7502]
[1728263675290,3.86,2491.6,2490.9,3.2078]
[1728263675485,0.28099,2491.3,2490.9,3.2078]
[1728263675684,3.86,2491.4,2490.9,3.2078]
[1728263675685,4.14098,2491.4,2490.9,3.2078]
[1728263677982,7.0678,2491.6,2490.9,3.2078]
[1728263678189,0.28097,2491.5,2490.9,3.2078]
[1728263678389,7.34876,2491.6,2490.9,3.48883]
[1728263678584,0.28097,2491.5,2491.0,0.8618]
[1728263678790,7.0678,2491.6,2491.0,1.14282]
[1728263678989,7.0678,2491.6,2491.1,0.9126]
[1728263679401,7.0678,2491.6,2491.1,1.1936]
[1728263679592,7.0678,2491.6,2491.1,0.9126]
[1728263679793,7.0678,2491.6,2491.1,1.19361]
[1728263680093,7.0678,2491.6,2491.1,0.9126]
[1728263680287,0.28094,2491.8,2491.2,3.48879]
[1728263680692,7.0678,2491.9,2491.2,3.48879]
[1728263681090,3.2078,2491.9,2491.4,0.28097]
[1728263681287,3.2078,2491.9,2491.5,0.28096]
[1728263682293,3.2078,2491.9,2491.6,0.8865]
[1728263682597,0.28094,2491.8,2491.2,3.2078]
[1728263682899,7.34872,2491.9,2491.3,0.28099]
[1728263683703,7.34872,2491.9,2491.2,4.0943]
[1728263684198,0.28094,2491.8,2491.2,4.0943]
[1728263685300,7.34872,2491.9,2491.2,4.0943]
[1728263685499,7.34872,2491.9,2491.2,4.3753]
[1728263686197,3.2078,2491.9,2491.3,0.28099]
[1728263686604,3.48872,2491.9,2491.3,0.28099]
[1728263686798,3.48872,2491.9,2491.2,4.37529]
[1728263687002,0.28094,2491.7,2491.2,4.0943]
[1728263687297,0.28094,2491.8,2491.2,4.0943]
[1728263688497,3.86,2491.9,2491.2,4.0943]
[1728263688803,0.28095,2491.7,2491.2,4.0943]
[1728263689700,0.28095,2491.7,2491.2,4.3753]
[1728263690805,0.28094,2491.8,2491.3,0.28098]
[1728263690998,3.86,2491.9,2491.2,4.0943]
[1728263691199,0.28093,2491.8,2491.3,0.28098]
[1728263691600,0.28093,2491.8,2491.2,4.0943]
[1728263691796,4.14093,2491.9,2491.2,4.0943]
[1728263691997,4.14093,2491.9,2491.3,0.28099]
[1728263692306,4.14093,2491.9,2491.4,0.28097]
[1728263692702,0.28093,2491.8,2491.3,0.28099]
[1728263694296,4.14092,2491.9,2491.4,0.28097]
[1728263694496,6.56345014,2492.2,2491.5,3.48876]
[1728263694497,5.6306,2492.2,2491.5,3.48876]
[1728263694702,0.28091,2492.0,2491.5,3.48876]
[1728263694896,0.70226,2492.1,2491.5,3.2078]
[1728263695098,0.28095,2491.7,2491.5,3.2078]
[1728263695906,1.56316,2492.1,2491.5,3.2078]
[1728263695907,0.8609,2492.1,2491.5,3.2078]
[1728263696209,8.8384,2492.2,2491.5,3.2078]
[1728263696210,0.28091,2492.0,2491.5,3.48876]
[1728263696815,0.28091,2492.0,2491.6,0.859]
[1728263698097,0.28091,2492.0,2491.4,0.28097]
[1728263698098,5.6306,2492.2,2491.4,3.2078]
[1728263698301,3.86,2491.6,2491.4,3.2078]
[1728263698506,4.14096,2491.6,2491.4,3.2078]
[1728263698702,0.28096,2491.6,2491.4,3.2078]
[1728263700508,5.42202,2491.9,2491.4,3.2078]
[1728263700509,1.856,2491.5,2491.4,3.2078]
[1728263701008,4.7197,2491.9,2491.4,7.2214]
[1728263701199,4.7197,2491.9,2491.4,3.2078]
[1728263701200,6.5757,2491.9,2491.4,3.2078]
[1728263701399,3.86,2492.2,2491.4,3.2078]
[1728263701706,3.86,2492.2,2491.6,0.28095]
[1728263701905,3.86,2492.2,2491.4,3.2078]
[1728263702106,0.28091,2492.0,2491.4,3.2078]
[1728263702408,3.86,2492.2,2491.4,3.48877]
[1728263702409,0.2809,2492.1,2491.4,3.48877]
[1728263702599,3.86,2492.2,2491.4,3.2078]
[1728263703003,3.86,2492.2,2491.6,0.28095]
[1728263703004,4.14089,2492.2,2491.6,0.28095]
[1728263704003,3.86,2492.2,2491.6,0.28095]
[1728263704214,3.86,2492.2,2491.7,0.9221]
[1728263704409,3.2078,2491.8,2491.2,0.8594]
[1728263704601,1.7458,2491.7,2491.2,0.8594]
[1728263705008,1.7458,2491.7,2491.3,0.28099]
[1728263705216,1.7458,2491.7,2491.2,4.0672]
[1728263706108,2.02675,2491.7,2491.2,4.0672]
[1728263706299,3.86,2491.9,2491.2,4.0672]
[1728263706606,0.28091,2492.0,2491.5,3.48876]
[1728263706905,0.2809,2492.1,2491.6,0.28095]
[1728263707102,3.86,2492.2,2491.8,0.28092]
[1728263707304,3.2078,2492.3,2491.6,0.8558]
[1728263707305,3.2078,2492.3,2491.7,5.8274]
[1728263707508,3.2078,2492.3,2491.9,0.28092]
[1728263707704,3.2078,2492.3,2491.8,0.28092]
[1728263708015,3.2078,2492.3,2491.8,0.28093]
[1728263708016,3.48867,2492.3,2491.8,0.28093]
[1728263708404,0.28089,2492.2,2491.7,2.09554]
[1728263708902,0.28089,2492.2,2491.8,4.0128]
[1728263709103,3.86,2492.5,2491.7,1.8146]
[1728263709298,0.28088,2492.3,2491.8,3.48873]
[1728263709700,3.86,2492.5,2491.8,3.2078]
[1728263709903,0.28089,2492.2,2491.8,3.2078]
[1728263710300,3.86,2492.5,2491.8,3.2078]
[1728263710507,0.28092,2492.0,2491.8,3.2078]
[1728263710913,1.19361,2492.1,2491.8,7.2206]
[1728263711109,0.28092,2492.0,2491.8,3.2078]
[1728263711314,0.9127,2492.1,2491.8,3.2078]
[1728263711512,1.19361,2492.1,2491.8,3.2078]
[1728263711916,0.9127,2492.1,2491.8,3.2078]
[1728263712117,0.28092,2491.9,2491.8,3.2078]
[1728263712318,0.9127,2492.1,2491.8,3.2078]
[1728263712526,3.13,2491.9,2491.8,3.2078]
[1728263713015,3.13,2491.9,2491.7,0.9347]
[1728263714911,3.13,2491.9,2491.6,4.0636]
[1728263714912,3.13,2491.9,2491.6,3.2078]
[1728263715116,3.41094,2491.7,2491.6,3.2078]
[1728263715315,3.13,2491.7,2491.1,1.7533]
[1728263715516,3.13,2491.3,2491.1,1.7533]
[1728263715817,3.13,2491.5,2491.2,0.281]
[1728263716012,3.13,2491.5,2491.1,1.7533]
[1728263716213,3.41097,2491.5,2491.1,1.7533]
[1728263716413,3.13,2491.5,2491.1,1.7533]
[1728263716613,3.13,2491.5,2491.1,2.0343]
[1728263716822,3.41097,2491.5,2491.1,1.7533]
[1728263717120,3.13,2491.2,2491.1,1.7533]
[1728263717517,3.13,2491.2,2491.1,5.7677]
[1728263718512,3.13,2491.2,2491.1,4.0144]
[1728263718719,3.13,2491.2,2491.1,10.29541]
[1728263718918,3.13,2491.2,2491.1,10.0144]
[1728263719319,3.13,2491.2,2491.1,10.29541]
[1728263719920,3.13,2491.5,2491.1,10.29541]
[1728263720132,3.13,2491.5,2491.1,0.28101]
[1728263720428,0.28102,2491.1,2490.7,3.2078]
[1728263720620,3.13,2490.8,2490.7,3.2078]
[1728263721522,3.13,2490.8,2490.7,7.223]
[1728263721823,1.17022,2491.1,2490.7,7.223]
[1728263721824,3.13,2491.0,2490.7,7.223]
[1728263722020,3.13,2491.0,2490.7,3.2078]
[1728263722423,3.41102,2491.0,2490.7,3.2078]
[1728263722622,3.13,2490.8,2490.4,4.1338]
[1728263722820,3.13,2490.6,2490.4,0.926]
[1728263724522,3.41107,2490.6,2490.4,0.926]
[1728263725039,0.9021,2491.0,2490.4,0.926]
[1728263725040,3.13,2490.8,2490.4,0.926]
[1728263725222,3.13,2490.8,2490.5,0.8915]
[1728263725523,4.31313,2491.0,2490.6,0.28106]
[1728263725823,0.28104,2490.9,2490.5,4.38037]
[1728263726730,0.28104,2490.9,2490.6,4.0152]
[1728263727027,0.28104,2490.9,2490.6,4.9338]
[1728263727232,0.28104,2490.9,2490.7,4.0152]
[1728263727621,3.13,2490.8,2490.5,4.0993]
[1728263728126,3.41103,2491.0,2490.6,4.0152]
[1728263728326,3.13,2491.0,2490.5,4.38037]
[1728263728530,3.13,2490.8,2490.5,4.0993]
[1728263728726,0.28106,2490.7,2490.5,4.0993]
[1728263728923,3.41107,2490.6,2490.5,3.2078]
[1728263729426,3.13,2490.6,2490.5,3.2078]
[1728263730022,3.41107,2490.6,2490.5,3.2078]
[1728263730734,3.13,2490.6,2490.1,3.2078]
[1728263731034,3.13,2490.3,2490.1,3.2078]
[1728263731332,0.28111,2490.2,2489.7,3.2078]
[1728263731539,3.13,2490.0,2489.7,3.2078]
[1728263731727,3.41112,2490.2,2489.7,3.2078]
[1728263732227,3.13,2490.2,2489.7,3.2078]
[1728263733031,3.13,2489.9,2489.7,3.2078]
[1728263733527,4.8989,2489.9,2489.7,3.2078]
[1728263734335,5.18004,2489.9,2489.7,3.2078]
[1728263734532,4.8989,2489.9,2489.7,3.2078]
[1728263735730,0.28116,2489.8,2489.7,3.2078]
[1728263735924,3.41116,2489.8,2489.7,3.2078]
[1728263736136,3.13,2489.8,2489.3,3.2078]
[1728263736337,3.41119,2489.5,2489.3,3.2078]
[1728263736636,0.928,2489.4,2489.0,3.2078]
[1728263736832,3.13,2489.5,2489.3,0.28121]
[1728263737032,3.13,2489.7,2489.3,3.2078]
[1728263737231,3.13,2489.4,2489.3,3.2078]
[1728263737426,3.13,2489.4,2488.9,0.9157]
[1728263737630,3.41121,2489.4,2488.9,0.9157]
[1728263737828,3.2078,2489.3,2488.9,0.9157]
[1728263738040,3.13,2489.4,2488.9,0.9157]
[1728263738239,3.13,2489.2,2488.9,0.9157]
[1728263738434,3.13,2489.0,2488.7,0.8477]
[1728263738939,3.13,2489.2,2488.7,0.8477]
[1728263739341,3.13,2489.2,2488.7,1.12898]
[1728263739536,3.41123,2489.2,2488.7,1.12898]
[1728263739737,3.41123,2489.2,2488.7,0.8477]
[1728263739738,3.13,2489.2,2488.7,0.8477]
[1728263740043,3.13,2489.2,2488.9,0.28125]
[1728263740333,3.13,2489.2,2488.7,0.8477]
[1728263740537,3.13,2489.2,2488.9,3.2078]
[1728263740729,3.13,2489.2,2488.7,1.12897]
[1728263740933,3.41123,2489.2,2488.6,3.48908]
[1728263741130,3.13,2489.0,2488.6,3.48909]
[1728263741732,3.41125,2489.0,2488.6,3.2078]
[1728263742229,3.13,2489.0,2488.6,3.48908]
[1728263742433,3.41125,2489.0,2488.6,3.2078]
[1728263742631,0.28126,2488.9,2488.6,3.2078]
[1728263742829,3.13,2488.8,2488.6,3.2078]
[1728263743038,3.9749,2488.8,2488.6,3.2078]
[1728263743336,0.28128,2488.7,2488.6,3.2078]
[1728263743535,1.15028,2488.7,2488.3,3.2078]
[1728263743747,0.869,2488.7,2488.3,3.48912]
[1728263744146,0.2813,2488.5,2488.3,3.2078]
[1728263744440,3.13,2488.6,2488.3,3.2078]
[1728263744836,3.4113,2488.6,2488.3,3.2078]
[1728263745036,3.13,2488.6,2488.3,3.2078]
[1728263746138,3.999,2488.7,2488.3,3.48912]
[1728263746334,0.2813,2488.6,2488.3,3.2078]
[1728263746535,3.13,2488.6,2488.3,3.2078]
[1728263746729,0.8449,2488.8,2488.5,0.2813]
[1728263746730,3.9749,2488.8,2488.5,0.2813]
[1728263746937,3.9749,2488.8,2488.4,1.13031]
[1728263747134,4.25618,2488.8,2488.4,0.849]
[1728263747330,3.13,2488.6,2488.3,3.2078]
[1728263747932,3.41129,2488.6,2488.3,3.2078]
[1728263748336,3.13,2488.6,2488.3,3.2078]
[1728263748544,3.13,2488.4,2488.3,3.2078]
[1728263749236,7.42971,2488.4,2488.3,3.2078]
[1728263749441,3.13,2488.4,2488.3,3.2078]
[1728263749839,3.41131,2488.4,2488.3,3.2078]
[1728263750044,4.26791,2488.4,2488.3,3.2078]
[1728263750340,8.28631,2488.4,2488.3,3.2078]
[1728263750734,0.28134,2488.2,2487.9,3.2078]
[1728263750940,3.13,2488.0,2487.9,3.2078]
[1728263751741,7.43056,2488.0,2487.9,3.2078]
[1728263751936,7.1492,2488.0,2487.9,3.2078]
[1728263752139,7.43056,2488.0,2487.9,3.2078]
[1728263752342,7.43056,2488.0,2487.6,3.2078]
[1728263752343,13.1492,2488.0,2487.6,3.2078]
[1728263752543,3.13,2487.7,2487.6,3.2078]
[1728263752740,3.41139,2487.7,2487.6,3.2078]
[1728263752940,7.15,2487.7,2487.6,3.2078]
[1728263753133,13.43139,2487.7,2487.2,3.2078]
[1728263753336,3.13,2487.3,2486.9,3.2078]
[1728263753535,2.52651942,2487.3,2486.9,3.2078]
[1728263753743,2.52651942,2487.3,2486.9,3.48927]
[1728263754042,2.52651942,2487.3,2487.0,0.28147]
[1728263754241,2.52651942,2487.3,2486.9,3.48928]
[1728263754936,2.52651942,2487.3,2486.9,3.2078]
[1728263755136,2.52651942,2487.3,2487.0,0.28147]
[1728263755334,2.52651942,2487.3,2486.9,3.2078]
[1728263755335,2.52651942,2487.3,2486.9,3.48928]
[1728263755740,2.52651942,2487.3,2486.9,3.2078]
[1728263756341,2.52651942,2487.3,2486.9,3.48928]
[1728263756548,2.52651942,2487.3,2487.0,0.28147]
[1728263756848,2.52651942,2487.3,2486.9,3.2078]
[1728263757046,2.52651942,2487.3,2486.9,3.48928]
[1728263757249,2.52651942,2487.3,2486.9,3.2078]
[1728263757548,3.13,2487.0,2486.9,3.2078]
[1728263757745,2.12410737,2487.0,2486.9,3.2078]
[1728263757944,2.12410737,2487.0,2486.9,3.48928]
[1728263758138,1.16173,2487.4,2486.9,3.2078]
[1728263758139,3.13,2487.3,2486.9,3.2078]
[1728263758346,3.13,2487.1,2486.9,3.2078]
[1728263759143,3.13,2487.1,2486.4,0.8648]
[1728263759346,3.13,2486.6,2486.2,0.28155]
[1728263759545,3.13,2486.6,2486.1,2.7105]
[1728263759546,3.2078,2486.9,2486.4,0.28154]
[1728263759751,3.13,2486.9,2486.3,3.2078]
[1728263759954,3.13,2486.9,2486.4,0.28153]
[1728263760162,3.13,2486.9,2486.5,0.28152]
[1728263760653,3.13,2486.9,2486.5,0.28153]
[1728263760946,3.13,2487.1,2486.7,0.2815]
[1728263761152,3.13,2487.1,2486.8,2.6417]
[1728263761352,0.28152,2486.6,2486.1,0.28157]
[1728263761547,3.2078,2487.1,2486.2,0.9046]
[1728263761548,3.41153,2486.5,2486.2,0.9046]
[1728263761743,3.13,2486.5,2486.2,0.9046]
[1728263761949,3.13,2486.3,2486.2,0.9046]
[1728263762256,3.13,2486.3,2485.4,3.2078]
[1728263762449,3.13,2486.3,2485.7,3.2078]
[1728263762651,3.13,2486.3,2486.0,0.28158]
[1728263762852,3.13,2486.7,2486.0,3.2078]
[1728263763157,0.28152,2486.6,2486.1,2.01867]
[1728263763346,3.13,2486.5,2486.2,0.9046]
[1728263763948,3.41153,2486.5,2486.2,0.9046]
[1728263764345,3.41155,2486.3,2486.2,0.9046]
[1728263765056,3.13,2486.3,2486.2,0.9046]
[1728263765252,0.28159,2486.0,2485.7,3.2078]
[1728263765456,3.13,2485.9,2485.7,3.2078]
[1728263766253,3.41158,2486.1,2485.7,3.2078]
[1728263766458,3.13,2486.1,2485.7,3.2078]
[1728263766749,3.41158,2486.1,2485.7,3.2078]
[1728263766952,3.13,2485.8,2485.4,1.762]
[1728263767151,4.0783,2486.2,2485.4,0.9244]
[1728263767152,3.13,2485.6,2485.4,0.9244]
[1728263767349,0.28161,2485.8,2485.4,0.9244]
[1728263767655,3.13,2485.7,2485.4,0.9244]
[1728263768050,0.28164,2485.6,2485.4,0.9244]
[1728263768250,3.41164,2485.5,2484.9,3.2078]
[1728263768448,3.13,2485.2,2484.9,4.0573]
[1728263768844,3.13,2485.2,2484.9,0.8495]
[1728263769158,3.2078,2485.3,2485.0,4.024]
[1728263769455,3.2078,2485.3,2484.9,0.8495]
[1728263769651,3.13,2485.6,2485.1,0.28168]
[1728263769853,3.13,2485.6,2484.9,4.8735]
[1728263769854,3.13,2485.6,2485.2,0.9144]
[1728263770150,0.8543,2486.1,2485.3,4.0232]
[1728263770352,0.8543,2486.1,2485.6,0.28162]
[1728263770649,3.13,2486.0,2485.7,0.8529]
[1728263771249,3.2078,2485.9,2485.7,0.8529]
[1728263771451,3.13,2485.8,2485.7,0.8529]
[1728263771650,6.3378,2485.8,2485.7,0.8529]
[1728263771854,3.13,2486.0,2485.7,0.8529]
[1728263772158,3.2078,2485.8,2485.7,0.8529]
[1728263772561,3.2078,2485.8,2485.2,12.0634]
[1728263772562,10.361,2485.8,2485.2,12.0634]
[1728263772855,6.3378,2485.8,2485.3,0.8529]
[1728263773356,3.41164,2485.6,2485.3,0.8529]
[1728263773652,3.13,2485.8,2485.5,0.28164]
[1728263773849,3.13,2485.8,2485.3,1.13455]
[1728263774245,3.13,2485.8,2485.3,0.8529]
[1728263774246,3.13,2485.6,2485.3,0.8529]
[1728263774458,3.13,2485.6,2485.3,1.13457]
[1728263774659,3.13,2485.6,2485.4,0.28165]
[1728263774855,3.13,2485.6,2485.3,0.8529]
[1728263775156,6.3378,2485.6,2485.3,0.8529]
[1728263775356,6.3378,2485.6,2485.1,3.2078]
[1728263775357,0.28164,2485.5,2485.1,3.2078]
[1728263775654,0.896,2485.5,2485.1,3.2078]
[1728263775850,0.896,2485.5,2485.1,3.48948]
[1728263776050,0.896,2485.5,2485.1,3.2078]
[1728263776454,0.896,2485.5,2485.1,3.48949]
[1728263776755,0.896,2485.5,2485.1,3.48948]
[1728263776955,0.9129,2486.1,2485.1,10.3618]
[1728263776956,3.2078,2485.9,2485.1,10.3618]
[1728263777155,3.2078,2485.9,2485.5,0.28164]
[1728263777351,3.2078,2485.9,2485.6,0.8646]
[1728263777552,3.2078,2485.9,2485.7,0.28161]
[1728263777759,3.2078,2485.9,2485.7,0.28162]
[1728263777950,3.2078,2485.9,2485.7,2.09642]
[1728263778148,3.2078,2485.9,2485.7,1.8148]
[1728263778552,3.2078,2485.9,2485.7,2.09641]
[1728263778750,3.2078,2485.9,2485.7,5.838]
[1728263778956,3.2078,2485.9,2485.7,2.09642]
[1728263779154,3.2078,2486.4,2485.7,5.838]
[1728263779355,3.2078,2486.4,2485.8,3.13]
[1728263779664,3.2078,2486.7,2486.0,3.2078]
[1728263780156,3.13,2487.0,2486.3,3.2078]
[1728263780362,3.13,2487.0,2486.5,0.28153]
[1728263780363,3.41148,2487.0,2486.5,0.28153]
[1728263780560,3.13,2487.0,2486.6,0.28151]
[1728263780961,3.13,2487.0,2486.4,2.6356]
[1728263781161,3.2078,2487.4,2486.4,5.7656]
[1728263781162,6.3378,2487.4,2486.4,5.7656]
[1728263781351,0.28144,2487.3,2486.8,0.28149]
[1728263781666,3.13,2487.1,2486.7,0.2815]
[1728263782054,0.28147,2487.0,2486.6,3.2078]
[1728263782256,3.13,2487.1,2486.6,3.2078]
[1728263782456,3.2078,2487.4,2486.5,11.149]
[1728263782457,3.86,2487.3,2486.5,11.149]
[1728263782662,0.28147,2487.1,2486.5,11.43052]
[1728263782860,0.28147,2487.1,2486.6,0.28152]
[1728263784066,3.86,2487.3,2486.5,11.149]
[1728263784267,0.28146,2487.1,2486.5,11.149]
[1728263784465,3.2078,2487.4,2486.5,11.149]
[1728263784659,3.2078,2487.4,2487.0,0.28147]
[1728263784859,0.8934,2487.5,2487.1,1.12986]
[1728263785070,0.8934,2487.5,2487.1,0.8484]
[1728263785263,0.28144,2487.3,2487.1,0.8484]
[1728263785567,0.28144,2487.3,2486.7,3.2078]
[1728263785568,3.2078,2487.3,2486.7,3.2078]
[1728263785752,3.2078,2487.3,2486.6,11.149]
[1728263786156,0.28147,2487.0,2486.6,11.149]
[1728263786359,0.28146,2487.2,2486.6,11.43051]
[1728263786667,0.28147,2487.0,2486.6,11.149]
[1728263786861,0.28147,2487.1,2486.6,11.43052]
[1728263787056,3.2078,2487.3,2486.6,11.43052]
[1728263787259,0.28146,2487.1,2486.6,11.149]
[1728263787464,0.28145,2487.2,2486.7,0.2815]
[1728263787768,0.28146,2487.2,2486.7,0.2815]
[1728263787968,0.28146,2487.2,2486.6,0.28151]
[1728263788168,0.28143,2487.4,2486.9,0.28148]
[1728263788363,0.28144,2487.3,2486.5,4.045]
[1728263788664,0.28143,2487.4,2487.0,0.28147]
[1728263788967,0.8934,2487.5,2487.0,0.28147]
[1728263788968,1.17482,2487.5,2487.0,0.28147]
[1728263789155,1.17482,2487.5,2487.1,2.6899]
[1728263789156,0.8934,2487.5,2487.1,2.6899]
[1728263789363,0.28141,2487.6,2487.1,2.97136]
[1728263789558,0.2814,2487.7,2487.2,0.28145]
[1728263789770,0.28141,2487.6,2487.1,2.97135]
[1728263789967,0.28141,2487.6,2487.2,0.28145]
[1728263790468,0.28141,2487.6,2487.1,5.8977]
[1728263790469,0.28142,2487.6,2487.1,5.8977]
[1728263790763,0.2814,2487.7,2487.3,0.28143]
[1728263790966,0.2814,2487.7,2487.1,5.8977]
[1728263790967,3.86,2488.0,2487.2,0.28145]
[1728263791159,0.28137,2487.9,2487.2,0.28145]
[1728263791357,0.2814,2487.7,2487.2,0.28145]
[1728263791561,3.86,2488.0,2487.3,0.28143]
[1728263791562,0.28139,2487.8,2487.3,0.28143]
[1728263791762,0.28136,2488.0,2487.1,5.8977]
[1728263791959,0.28136,2488.0,2487.5,0.28141]
[1728263792362,0.28138,2487.9,2487.4,0.28142]
[1728263792558,0.28139,2487.8,2487.3,0.28143]
[1728263792765,0.28138,2487.9,2487.4,0.28142]
[1728263792974,0.28138,2487.8,2487.4,0.28142]
[1728263793273,0.28138,2487.9,2487.4,0.28142]
[1728263793569,0.28137,2488.0,2487.5,0.28141]
[1728263793770,5.30875,2488.1,2487.6,0.2814]
[1728263794763,3.86,2488.3,2487.4,3.2078]
[1728263794966,0.28133,2488.3,2487.8,0.28138]
[1728263795264,0.28133,2488.3,2487.9,0.876]
[1728263795464,0.9157,2488.5,2487.9,1.15737]
[1728263795465,0.28132,2488.4,2487.9,1.15737]
[1728263795864,0.28132,2488.4,2487.4,11.149]
[1728263795865,0.28139,2487.8,2487.4,11.149]
[1728263796063,0.28141,2487.6,2487.2,0.876]
[1728263796266,0.9157,2487.7,2487.2,0.876]
[1728263796471,1.1971,2487.7,2487.2,1.15745]
[1728263796862,0.9157,2487.7,2487.3,0.28143]
[1728263797178,0.8696,2488.0,2487.6,0.2814]
[1728263797374,0.8696,2488.0,2487.5,0.28141]
[1728263797674,0.8696,2488.0,2487.6,0.2814]
[1728263798069,0.8696,2488.0,2487.5,0.28141]
[1728263798070,1.15096,2488.0,2487.5,0.28141]
[1728263798375,1.15097,2488.0,2487.5,0.28141]
[1728263798876,1.15096,2488.0,2487.5,0.28141]
[1728263799068,0.8696,2488.0,2487.6,0.2814]
[1728263799675,0.8696,2488.0,2487.7,0.28139]
[1728263799877,0.8696,2488.0,2487.2,12.025]
[1728263799878,0.8696,2488.0,2487.6,0.2814]
[1728263800081,0.8696,2488.0,2487.7,0.28139]
[1728263800370,0.8696,2488.0,2487.4,3.2078]
[1728263800371,1.15096,2488.0,2487.6,0.2814]
[1728263800674,0.8696,2488.0,2487.4,3.2078]
[1728263800871,1.15097,2488.0,2487.6,0.2814]
[1728263801577,0.8696,2488.0,2487.4,3.2078]
[1728263801778,0.28138,2487.9,2487.5,0.28141]
[1728263801973,1.15096,2488.0,2487.6,0.2814]
[1728263802573,0.8696,2488.0,2487.5,0.28142]
[1728263802765,0.8696,2488.0,2487.6,0.2814]
[1728263802970,1.15097,2488.0,2487.6,0.2814]
[1728263803381,0.28137,2487.9,2487.5,0.28141]
[1728263803573,1.15097,2488.0,2487.6,0.2814]